bitfinex/quotes_BTCUSD_20250422
["timestamp","ask_amount","ask_price","bid_price","bid_amount"]
[1745325622929,0.11375594,88534.0,88533.0,0.00515314]
[1745325623179,0.11375594,88534.0,88533.0,0.00145467]
[1745325623329,0.11375594,88534.0,88533.0,0.00615314]
[1745325623540,0.11375594,88534.0,88533.0,0.00433663]
[1745325623740,0.11775594,88534.0,88533.0,0.00433663]
[1745325624072,0.13229679,88534.0,88533.0,0.00433663]
[1745325624436,0.13329679,88534.0,88533.0,0.00433663]
[1745325624700,1.11775594,88534.0,88533.0,0.00433663]
[1745325624936,1.11063686,88534.0,88533.0,0.00433663]
[1745325625150,1.10663686,88534.0,88533.0,0.00333663]
[1745325625366,1.25385138,88534.0,88533.0,0.00333663]
[1745325625806,1.10963686,88534.0,88533.0,0.00333663]
[1745325626231,1.11263686,88534.0,88533.0,0.00433663]
[1745325626447,1.33553877,88534.0,88533.0,0.00433663]
[1745325626672,1.33953877,88534.0,88533.0,0.00333663]
[1745325626918,1.34653877,88534.0,88533.0,0.00333663]
[1745325627332,1.33953877,88534.0,88533.0,0.00333663]
[1745325628083,1.33853877,88534.0,88533.0,0.00333663]
[1745325628490,1.34553877,88534.0,88533.0,0.00333663]
[1745325628698,1.11963686,88534.0,88533.0,0.00333663]
[1745325629352,1.11363686,88534.0,88533.0,0.00333663]
[1745325629778,1.11963686,88534.0,88533.0,0.00333663]
[1745325630541,1.11363686,88534.0,88533.0,0.00333663]
[1745325630753,1.12063686,88534.0,88533.0,0.00333663]
[1745325631160,1.10663686,88534.0,88533.0,0.00333663]
[1745325631379,1.11363686,88534.0,88533.0,0.00333663]
[1745325632023,1.10663686,88534.0,88533.0,0.00333663]
[1745325632248,1.11463686,88534.0,88533.0,0.00333663]
[1745325632418,1.10763686,88534.0,88533.0,0.00333663]
[1745325632822,1.09963686,88534.0,88533.0,0.00333663]
[1745325633146,1.10763686,88534.0,88533.0,0.00333663]
[1745325633386,1.25785138,88534.0,88533.0,0.00333663]
[1745325633604,1.11363686,88534.0,88533.0,0.00333663]
[1745325633767,1.10763686,88534.0,88533.0,0.00333663]
[1745325634179,1.09963686,88534.0,88533.0,0.00333663]
[1745325634395,1.75709651,88534.0,88533.0,0.00333663]
[1745325634592,1.8405423,88534.0,88533.0,0.00333663]
[1745325634794,1.5786235,88534.0,88533.0,0.00333663]
[1745325635137,1.20968103,88534.0,88533.0,0.00333663]
[1745325635270,1.11314018,88534.0,88533.0,0.00333663]
[1745325635948,1.10514018,88534.0,88533.0,0.00333663]
[1745325636107,1.11414018,88534.0,88533.0,0.00333663]
[1745325636311,1.34004209,88534.0,88533.0,0.00333663]
[1745325636512,1.11414018,88534.0,88533.0,0.00333663]
[1745325636719,1.34004209,88534.0,88533.0,0.00333663]
[1745325637145,1.33304209,88534.0,88533.0,0.00333663]
[1745325637348,1.33104209,88534.0,88533.0,0.00333663]
[1745325637575,1.33904209,88534.0,88533.0,0.00333663]
[1745325637780,1.33204209,88534.0,88533.0,0.00333663]
[1745325638011,1.33904209,88534.0,88533.0,0.00333663]
[1745325638330,1.32404209,88534.0,88533.0,0.00333663]
[1745325638581,1.68758294,88534.0,88533.0,0.00333663]
[1745325638792,1.80933499,88534.0,88533.0,0.00333663]
[1745325638978,1.80178364,88534.0,88533.0,0.00333663]
[1745325639227,1.83171199,88534.0,88533.0,0.00333663]
[1745325639437,1.86217446,88534.0,88533.0,0.00333663]
[1745325640254,1.85517446,88534.0,88533.0,0.00333663]
[1745325640420,1.84617446,88534.0,88533.0,0.00333663]
[1745325640634,1.85317446,88534.0,88533.0,0.00333663]
[1745325640841,1.83218496,88534.0,88533.0,0.00333663]
[1745325641182,1.81025661,88534.0,88533.0,0.00333663]
[1745325641366,1.82479746,88534.0,88533.0,0.00333663]
[1745325641671,1.82125661,88534.0,88533.0,0.00333663]
[1745325641801,1.83579746,88534.0,88533.0,0.00333663]
[1745325642216,1.83479746,88534.0,88533.0,0.00333663]
[1745325642855,1.80633499,88534.0,88533.0,0.00333663]
[1745325643104,1.69158294,88534.0,88533.0,0.00333663]
[1745325643370,1.69158294,88534.0,88521.0,0.0004]
[1745325643371,0.58047338,88522.0,88521.0,0.0004]
[1745325643567,0.5814887,88516.0,88515.0,1e-08]
[1745325643777,0.5814887,88516.0,88504.0,0.013508]
[1745325643778,0.24052444,88502.0,88486.0,0.0008472]
[1745325643978,0.24053465,88498.0,88486.0,0.0008472]
[1745325644182,0.35429059,88498.0,88486.0,0.0008472]
[1745325644930,0.22600913,88492.0,88486.0,0.0008472]
[1745325645127,0.35476009,88492.0,88486.0,0.0008472]
[1745325645337,0.46116021,88492.0,88486.0,0.0008472]
[1745325645741,0.38653883,88492.0,88491.0,1e-08]
[1745325645952,0.2260219,88487.0,88486.0,1e-08]
[1745325646178,0.22608322,88463.0,88446.0,0.1108]
[1745325646410,0.33983916,88463.0,88462.0,0.00851736]
[1745325646822,0.22608322,88463.0,88462.0,0.00851736]
[1745325647452,0.35438001,88463.0,88462.0,0.00851736]
[1745325647660,0.44126005,88463.0,88462.0,0.00641901]
[1745325647859,0.35576156,88463.0,88462.0,0.00641901]
[1745325648062,0.34129305,88463.0,88462.0,0.00641901]
[1745325648595,0.01454085,88462.0,88461.0,1e-08]
[1745325648805,0.22609855,88457.0,88456.0,1.07694111]
[1745325649009,0.35439534,88457.0,88456.0,1.07694111]
[1745325649483,0.44392194,88457.0,88456.0,1.07694111]
[1745325649695,0.78392194,88457.0,88456.0,0.54059831]
[1745325649919,0.78492194,88457.0,88456.0,1e-08]
[1745325650141,0.78492194,88457.0,88456.0,0.00121581]
[1745325650358,0.22612411,88447.0,88446.0,0.1108]
[1745325650578,0.38881884,88447.0,88446.0,0.1108]
[1745325650804,0.33988005,88447.0,88446.0,0.1117691]
[1745325651072,0.3544209,88447.0,88446.0,0.11865726]
[1745325651977,0.3544209,88447.0,88446.0,0.00582089]
[1745325652217,0.3544209,88447.0,88446.0,0.00655026]
[1745325652452,0.3544209,88447.0,88445.0,1e-08]
[1745325652453,0.35454085,88446.0,88445.0,1e-08]
[1745325652689,0.46829679,88446.0,88445.0,1e-08]
[1745325653765,0.46929679,88446.0,88445.0,1e-08]
[1745325654103,0.48429679,88446.0,88445.0,1e-08]
[1745325654341,1.49629679,88446.0,88445.0,1e-08]
[1745325654703,0.68147008,88445.0,88444.0,91.67343016]
[1745325654950,0.78809553,88445.0,88444.0,91.67343016]
[1745325655173,0.73809553,88445.0,88444.0,91.67343016]
[1745325655400,0.68829553,88445.0,88444.0,91.67343016]
[1745325656276,0.34829553,88445.0,88444.0,91.46823498]
[1745325656918,0.68829553,88445.0,88444.0,91.46823498]
[1745325657398,0.69929553,88445.0,88444.0,91.46823498]
[1745325657611,0.68829553,88445.0,88444.0,91.46823498]
[1745325657831,0.70129553,88445.0,88444.0,91.46823498]
[1745325658067,0.69288517,88445.0,88444.0,91.46823498]
[1745325658288,0.82935498,88445.0,88444.0,91.46823498]
[1745325658497,0.72342602,88445.0,88444.0,91.46823498]
[1745325660204,0.38342602,88445.0,88444.0,91.46823498]
[1745325660646,0.13329799,88445.0,88444.0,91.46923498]
[1745325660872,0.029,88445.0,88444.0,91.51533498]
[1745325661107,0.029,88445.0,88444.0,91.51633498]
[1745325661355,0.029,88445.0,88444.0,91.85633498]
[1745325661577,0.00830993,88445.0,88444.0,91.85633498]
[1745325661814,1.0,88446.0,88445.0,0.56712923]
[1745325662031,0.00045389,88463.0,88462.0,0.56708577]
[1745325662255,0.00045389,88463.0,88462.0,0.341]
[1745325663148,0.09016675,88498.0,88479.0,0.001]
[1745325663372,0.32743284,88509.0,88492.0,0.001]
[1745325663591,0.01129854,88507.0,88492.0,0.001]
[1745325663813,0.01214616,88499.0,88492.0,0.001]
[1745325664027,0.0008466,88499.0,88492.0,0.001]
[1745325664890,0.0038466,88499.0,88492.0,0.001]
[1745325665116,0.0068466,88499.0,88492.0,0.002]
[1745325665570,0.01129981,88497.0,88492.0,0.001]
[1745325665800,0.11375594,88496.0,88479.0,4.549e-05]
[1745325666018,0.01130007,88495.0,88479.0,4.549e-05]
[1745325666230,0.11375594,88494.0,88479.0,4.549e-05]
[1745325666463,0.11375594,88494.0,88480.0,0.22603978]
[1745325666673,0.11375594,88494.0,88479.0,4.549e-05]
[1745325667771,0.11675594,88494.0,88480.0,0.001]
[1745325668215,0.11775594,88494.0,88480.0,0.001]
[1745325668449,0.10675594,88494.0,88479.0,0.22608731]
[1745325668661,0.0008466,88499.0,88480.0,0.01130198]
[1745325668875,0.001,88494.0,88483.0,0.0113016]
[1745325669133,0.11460254,88499.0,88479.0,4.549e-05]
[1745325669359,0.11375594,88493.0,88479.0,4.549e-05]
[1745325669572,0.11375594,88493.0,88479.0,0.00104549]
[1745325669785,0.11375594,88493.0,88479.0,0.22708686]
[1745325669910,0.11375594,88493.0,88480.0,0.22603837]
[1745325670823,0.11375594,88493.0,88479.0,4.549e-05]
[1745325671049,0.01130109,88487.0,88479.0,4.549e-05]
[1745325671271,0.11375594,88486.0,88480.0,0.001]
[1745325671976,0.003,88493.0,88480.0,0.001]
[1745325672199,0.003,88487.0,88481.0,0.34]
[1745325672643,0.003,88487.0,88482.0,0.22603398]
[1745325673320,0.003,88487.0,88481.0,0.34]
[1745325673544,0.003,88487.0,88484.0,0.22602874]
[1745325673754,0.002,88493.0,88480.0,0.34]
[1745325673962,0.003,88486.0,88480.0,0.341]
[1745325674175,5.14421452,88495.0,88479.0,4.549e-05]
[1745325674442,0.003,88487.0,88479.0,4.549e-05]
[1745325674650,0.004,88487.0,88479.0,4.549e-05]
[1745325674866,0.003,88487.0,88479.0,4.549e-05]
[1745325675535,0.11375594,88486.0,88479.0,4.549e-05]
[1745325675958,0.11575594,88486.0,88479.0,4.549e-05]
[1745325676147,0.10875594,88486.0,88479.0,4.549e-05]
[1745325676584,0.10675594,88486.0,88479.0,4.549e-05]
[1745325677008,0.10875594,88486.0,88479.0,4.549e-05]
[1745325677225,0.22603978,88480.0,88479.0,4.549e-05]
[1745325677418,0.33979572,88480.0,88479.0,4.549e-05]
[1745325677585,0.33979572,88480.0,88479.0,0.00104549]
[1745325677802,0.11375594,88480.0,88479.0,0.00104549]
[1745325678467,0.11375594,88480.0,88479.0,4.549e-05]
[1745325678812,0.11875594,88480.0,88479.0,0.00104549]
[1745325679221,0.12475594,88480.0,88479.0,0.00104549]
[1745325681315,0.011,88480.0,88479.0,0.00104549]
[1745325683755,0.004,88480.0,88479.0,0.22708782]
[1745325685130,0.004,88480.0,88479.0,0.22934807]
[1745325685570,0.004,88480.0,88479.0,0.91858276]
[1745325685774,5.0,88495.0,88494.0,0.22600402]
[1745325686253,5.0,88495.0,88490.0,0.22601367]
[1745325686466,5.0,88495.0,88494.0,0.22600402]
[1745325686889,5.002,88495.0,88494.0,0.22600402]
[1745325687532,5.002,88495.0,88494.0,0.33975996]
[1745325687742,5.002,88495.0,88494.0,0.34075996]
[1745325687947,5.002,88495.0,88494.0,1.41673181]
[1745325688154,5.002,88495.0,88494.0,1.07495881]
[1745325688366,5.002,88495.0,88494.0,1.07695881]
[1745325688591,5.002,88495.0,88494.0,1.05423181]
[1745325688775,5.002,88495.0,88494.0,0.84086881]
[1745325688985,5.0,88495.0,88494.0,0.57690502]
[1745325689190,5.0,88495.0,88494.0,0.22600402]
[1745325689855,5.001,88495.0,88494.0,0.22600402]
[1745325690053,5.001,88495.0,88494.0,0.22900402]
[1745325690264,5.0,88495.0,88494.0,0.22900402]
[1745325690489,5.0,88495.0,88494.0,0.003]
[1745325690693,5.001,88495.0,88494.0,0.003]
[1745325690892,5.001,88495.0,88494.0,0.006]
[1745325691120,5.001,88495.0,88494.0,0.003]
[1745325691433,5.001,88495.0,88494.0,0.005]
[1745325691818,5.001,88495.0,88494.0,0.003]
[1745325692110,5.001,88495.0,88480.0,0.36387707]
[1745325692111,5.0,88495.0,88480.0,0.36387707]
[1745325692287,5.3407574,88495.0,88494.0,0.002]
[1745325692667,0.01130058,88491.0,88469.0,0.22606676]
[1745325692869,0.11375594,88490.0,88470.0,0.2260645]
[1745325693067,0.35007124,88490.0,88459.0,0.01130467]
[1745325693349,5.008,88495.0,88480.0,0.36387707]
[1745325693566,5.002,88495.0,88480.0,0.36387707]
[1745325693773,0.003,88491.0,88482.0,0.22603356]
[1745325694031,0.003,88491.0,88479.0,0.00104549]
[1745325694643,0.11375594,88490.0,88479.0,0.00104549]
[1745325694850,0.11375594,88490.0,88479.0,4.549e-05]
[1745325695057,0.11575594,88490.0,88479.0,4.549e-05]
[1745325695267,0.35307123,88490.0,88480.0,0.001]
[1745325695475,0.11575594,88490.0,88480.0,0.001]
[1745325695690,0.11575594,88490.0,88479.0,4.549e-05]
[1745325695957,0.11575594,88490.0,88479.0,0.00104549]
[1745325696184,0.11775594,88490.0,88479.0,0.00104549]
[1745325696590,0.11275594,88490.0,88479.0,4.549e-05]
[1745325696817,0.11375594,88490.0,88479.0,4.549e-05]
[1745325697307,0.003,88490.0,88480.0,0.58991508]
[1745325697537,0.003,88490.0,88483.0,0.22603209]
[1745325697795,0.005,88490.0,88489.0,0.22601679]
[1745325698020,0.002,88490.0,88489.0,0.56601679]
[1745325698250,5.0,88495.0,88494.0,0.22600402]
[1745325699617,5.0,88495.0,88494.0,0.56600402]
[1745325700047,5.002,88495.0,88494.0,0.56700402]
[1745325701556,5.0,88495.0,88494.0,0.341]
[1745325701780,5.002,88495.0,88494.0,0.56800402]
[1745325701984,5.002,88495.0,88494.0,0.56700402]
[1745325702172,5.0,88495.0,88494.0,0.56700402]
[1745325702632,5.002,88495.0,88494.0,0.56700402]
[1745325703056,5.002,88495.0,88494.0,0.56600402]
[1745325703269,5.0,88495.0,88494.0,0.56600402]
[1745325704063,5.0,88495.0,88494.0,0.56700402]
[1745325704309,4.993,88495.0,88494.0,0.56700402]
[1745325704512,4.995,88495.0,88494.0,0.56800402]
[1745325706157,4.995,88495.0,88494.0,0.68175996]
[1745325707177,4.995,88495.0,88494.0,0.56800402]
[1745325707802,4.995,88495.0,88494.0,0.342]
[1745325708141,4.995,88495.0,88494.0,0.56800402]
[1745325708624,4.995,88495.0,88494.0,0.002]
[1745325709259,4.995,88495.0,88494.0,0.22800402]
[1745325713171,4.988,88495.0,88494.0,0.22800402]
[1745325715726,4.988,88495.0,88494.0,0.56800402]
[1745325716423,4.988,88495.0,88494.0,2.21252896]
[1745325717254,4.988,88495.0,88494.0,2.21352896]
[1745325717465,4.988,88495.0,88494.0,1.82259096]
[1745325717667,4.988,88495.0,88494.0,1.74555181]
[1745325718307,2.85816893,88495.0,88494.0,0.69730081]
[1745325718525,2.85816893,88495.0,88494.0,5.69730081]
[1745325718763,2.85616893,88495.0,88494.0,5.41879881]
[1745325718971,2.85716893,88495.0,88494.0,5.41979881]
[1745325719383,2.85616893,88495.0,88494.0,5.41779881]
[1745325719614,2.79136893,88495.0,88494.0,5.41779881]
[1745325719824,2.70896893,88495.0,88494.0,5.42079881]
[1745325720058,2.65256893,88495.0,88494.0,5.42079881]
[1745325720281,2.59616893,88495.0,88494.0,5.42079881]
[1745325720468,2.59616893,88495.0,88494.0,4.43288281]
[1745325720797,2.49426893,88495.0,88494.0,4.43788281]
[1745325721229,2.43686893,88495.0,88494.0,4.42988281]
[1745325721433,2.42286893,88495.0,88494.0,3.95944581]
[1745325721641,2.37526893,88495.0,88494.0,3.95944581]
[1745325722125,2.37426893,88495.0,88494.0,3.71078509]
[1745325722338,0.8110244,88495.0,88494.0,3.99278911]
[1745325722555,0.97404661,88500.0,88499.0,0.2405321]
[1745325722775,0.89643657,88500.0,88499.0,5.35428804]
[1745325722987,0.86443657,88500.0,88499.0,5.35428804]
[1745325723199,0.04469875,88500.0,88499.0,5.35528804]
[1745325723415,0.02098787,88500.0,88499.0,5.35528804]
[1745325723626,1e-08,88504.0,88503.0,0.29052189]
[1745325723883,0.048,88544.0,88514.0,0.01454085]
[1745325724094,0.048,88544.0,88529.0,0.56591467]
[1745325724308,0.048,88544.0,88529.0,0.67967061]
[1745325724526,0.0008484,88552.0,88529.0,0.69421146]
[1745325724739,0.0008484,88552.0,88529.0,2.70315046]
[1745325725206,0.0008484,88552.0,88529.0,2.70319595]
[1745325725421,0.0008484,88552.0,88529.0,2.89329177]
[1745325725630,0.0008484,88552.0,88529.0,2.89529177]
[1745325726038,0.0008484,88552.0,88529.0,2.89729177]
[1745325726462,0.0008484,88552.0,88529.0,2.89529177]
[1745325726694,0.0008484,88552.0,88529.0,2.87013077]
[1745325726900,0.0008484,88552.0,88529.0,2.72114077]
[1745325727108,0.0008484,88552.0,88529.0,2.71914077]
[1745325727287,0.0008484,88552.0,88529.0,2.57965777]
[1745325727749,0.0008484,88552.0,88529.0,2.55936377]
[1745325728491,0.0008484,88552.0,88529.0,2.56136377]
[1745325728777,0.0008484,88552.0,88529.0,2.55936377]
[1745325729063,0.0008484,88552.0,88529.0,2.56136377]
[1745325732122,0.0008484,88552.0,88529.0,2.55936377]
[1745325732359,1e-08,88531.0,88530.0,0.35454085]
[1745325732527,0.0008484,88552.0,88530.0,5.46829679]
[1745325732757,0.0008484,88552.0,88548.0,0.56586619]
[1745325732958,0.0008484,88552.0,88548.0,1.04044255]
[1745325733370,0.0008484,88552.0,88548.0,0.98412655]
[1745325733556,0.0008484,88552.0,88548.0,0.95859655]
[1745325734321,0.0074,88549.0,88548.0,0.95859655]
[1745325734928,0.0004,88549.0,88548.0,0.95859655]
[1745325735565,0.0004,88549.0,88548.0,0.9731374]
[1745325736217,0.0064,88549.0,88548.0,0.9731374]
[1745325736867,0.0004,88549.0,88548.0,0.9731374]
[1745325737070,0.0044,88549.0,88548.0,0.9731374]
[1745325737953,0.0008484,88552.0,88548.0,0.9731374]
[1745325737954,0.0008,88564.0,88563.0,0.56582794]
[1745325739242,0.00125445,88564.0,88563.0,0.56582794]
[1745325740024,0.00125445,88564.0,88563.0,0.8558943]
[1745325740229,0.0004,88609.0,88598.0,0.01128693]
[1745325740433,0.0008,88624.0,88618.0,0.56568778]
[1745325740685,0.0014,88669.0,88627.0,0.01128324]
[1745325740686,0.13970712,88658.0,88627.0,0.01128324]
[1745325740832,0.11375594,88637.0,88612.0,0.34]
[1745325741029,0.11375594,88637.0,88623.0,0.22567446]
[1745325741314,0.11375594,88637.0,88621.0,0.34]
[1745325741315,0.11375594,88637.0,88611.0,0.17631042]
[1745325741523,0.11375594,88637.0,88619.0,0.34]
[1745325741689,0.11375594,88637.0,88612.0,0.56570306]
[1745325741893,0.11375594,88637.0,88620.0,0.24204973]
[1745325742102,0.0014226,88638.0,88627.0,0.2256626]
[1745325742264,0.0014226,88638.0,88620.0,0.24204973]
[1745325742473,0.0014226,88638.0,88628.0,0.22566192]
[1745325743073,0.0014226,88638.0,88620.0,0.24204973]
[1745325743276,0.0014226,88638.0,88627.0,0.001]
[1745325743277,0.0954,88636.0,88627.0,0.001]
[1745325743501,0.11375594,88635.0,88627.0,0.22666391]
[1745325743762,0.0954,88636.0,88627.0,0.22666391]
[1745325743763,0.0954,88636.0,88635.0,0.22564449]
[1745325744916,0.0954,88636.0,88630.0,0.22565646]
[1745325745138,0.0954,88636.0,88634.0,0.22564536]
[1745325745347,0.0114226,88638.0,88637.0,0.34]
[1745325745816,0.0014226,88638.0,88637.0,0.34]
[1745325746930,0.0084226,88638.0,88637.0,0.34]
[1745325747429,1e-08,88639.0,88638.0,0.56563686]
[1745325747648,1e-08,88643.0,88642.0,0.58016752]
[1745325747875,1e-08,88643.0,88642.0,0.69392346]
[1745325749004,0.0452,88676.0,88666.0,0.34]
[1745325749227,0.0452,88676.0,88668.0,0.56556051]
[1745325750328,0.00085529,88669.0,88668.0,0.56556051]
[1745325750876,0.00485529,88669.0,88666.0,0.2255636]
[1745325751103,0.00485529,88669.0,88668.0,0.22556051]
[1745325751320,0.00485529,88669.0,88668.0,0.56556051]
[1745325751956,0.00085529,88669.0,88668.0,0.56556051]
[1745325752194,1e-08,88669.0,88668.0,0.87016772]
[1745325752430,0.0004238,88678.0,88668.0,0.87016772]
[1745325752431,1e-08,88684.0,88683.0,0.58006321]
[1745325752641,0.0004228,88705.0,88704.0,0.56546897]
[1745325752824,0.0452,88722.0,88708.0,0.5654588]
[1745325753060,0.0452,88722.0,88708.0,0.67921474]
[1745325753490,0.01020041,88729.0,88728.0,0.22540798]
[1745325754133,0.01020041,88729.0,88728.0,0.56540798]
[1745325754347,0.01020041,88729.0,88728.0,0.56545347]
[1745325755232,0.01020041,88729.0,88728.0,0.67920941]
[1745325755449,0.01220041,88729.0,88728.0,0.67920941]
[1745325755895,0.01020041,88729.0,88728.0,1.40847541]
[1745325756116,0.01020041,88729.0,88728.0,0.56545347]
[1745325756326,0.01420041,88729.0,88728.0,0.56545347]
[1745325756743,0.01020041,88729.0,88728.0,0.56545347]
[1745325756951,0.01220041,88729.0,88728.0,0.56545347]
[1745325758134,0.0476,88751.0,88743.0,0.22536988]
[1745325758798,0.0004224,88758.0,88743.0,0.67912582]
[1745325759024,0.0004224,88758.0,88743.0,0.56536988]
[1745325759241,0.0078,88744.0,88743.0,0.56636988]
[1745325759885,0.0008,88744.0,88743.0,0.56536988]
[1745325760095,0.0038,88744.0,88743.0,0.56536988]
[1745325760313,0.0038,88744.0,88743.0,0.67912582]
[1745325760741,1e-08,88744.0,88743.0,0.67912582]
[1745325761426,0.0004224,88758.0,88757.0,0.56533433]
[1745325761649,0.0004224,88758.0,88757.0,0.22533433]
[1745325761870,0.0004224,88758.0,88753.0,0.34]
[1745325762084,0.0004224,88758.0,88755.0,0.22533742]
[1745325762327,0.0004224,88758.0,88757.0,0.22533433]
[1745325762551,0.00087797,88758.0,88757.0,0.22533433]
[1745325762772,0.00187797,88758.0,88757.0,0.22533433]
[1745325763201,0.00687797,88758.0,88757.0,0.56533433]
[1745325763440,0.0004,88759.0,88758.0,0.34]
[1745325763683,1e-08,88759.0,88758.0,1.76522343]
[1745325763898,1e-08,88759.0,88758.0,0.45380143]
[1745325764547,1e-08,88759.0,88758.0,0.46834228]
[1745325765207,1e-08,88759.0,88758.0,0.47284528]
[1745325765878,1e-08,88759.0,88758.0,0.45830443]
[1745325766114,0.03952211,88786.0,88785.0,0.22526327]
[1745325767034,0.03952211,88786.0,88758.0,0.004503]
[1745325767035,0.15427805,88786.0,88758.0,0.004503]
[1745325767257,0.11375594,88780.0,88758.0,0.00454849]
[1745325767490,0.045,88779.0,88758.0,4.549e-05]
[1745325767918,0.11375594,88778.0,88758.0,4.549e-05]
[1745325768574,0.11375594,88778.0,88767.0,0.22530809]
[1745325768789,0.11375594,88778.0,88758.0,4.549e-05]
[1745325768790,0.11375594,88778.0,88760.0,0.22532672]
[1745325769010,0.11475594,88778.0,88760.0,0.22532672]
[1745325769226,0.11475594,88778.0,88758.0,4.549e-05]
[1745325769227,0.045,88776.0,88758.0,4.549e-05]
[1745325769449,0.11375594,88775.0,88758.0,4.549e-05]
[1745325769661,0.11352075,88775.0,88758.0,4.549e-05]
[1745325770134,0.11352075,88775.0,88758.0,0.22537689]
[1745325770343,0.045,88771.0,88758.0,4.549e-05]
[1745325770591,0.01126544,88767.0,88758.0,4.549e-05]
[1745325770806,0.01126633,88760.0,88735.0,0.22538807]
[1745325771007,0.01126659,88758.0,88740.0,0.00103275]
[1745325771233,0.02580655,88765.0,88740.0,0.00103275]
[1745325771234,0.01126798,88747.0,88740.0,0.00103275]
[1745325771447,0.11375594,88746.0,88740.0,0.00103275]
[1745325771630,0.045,88747.0,88745.0,0.2253648]
[1745325772065,0.045,88747.0,88745.0,0.22536433]
[1745325772671,0.002,88746.0,88745.0,0.22536433]
[1745325773925,0.04,88747.0,88745.0,0.22536433]
[1745325774357,0.045,88747.0,88745.0,0.22536433]
[1745325774988,0.04,88747.0,88745.0,0.22536433]
[1745325775209,0.004,88747.0,88745.0,0.22536433]
[1745325775433,0.004,88747.0,88746.0,0.34]
[1745325775650,0.0453,88785.0,88771.0,0.01126494]
[1745325775866,0.15905594,88785.0,88783.0,0.22526711]
[1745325776903,0.045,88784.0,88783.0,0.22526711]
[1745325777125,0.045,88784.0,88783.0,0.22531264]
[1745325778280,0.051,88784.0,88783.0,0.22531264]
[1745325778484,0.006,88784.0,88783.0,0.22531264]
[1745325779369,0.006,88784.0,88783.0,0.56531264]
[1745325780631,0.11975594,88784.0,88783.0,4.553e-05]
[1745325780855,0.16475594,88784.0,88783.0,4.553e-05]
[1745325781077,0.21005594,88784.0,88783.0,4.553e-05]
[1745325781565,0.2259129,88784.0,88783.0,4.553e-05]
[1745325781788,0.01454085,88783.0,88763.0,0.22531871]
[1745325781994,0.11375594,88780.0,88763.0,0.22531871]
[1745325782200,0.02085696,88779.0,88763.0,0.22536425]
[1745325782440,0.11375594,88778.0,88764.0,0.22531591]
[1745325782660,0.045,88777.0,88763.0,4.554e-05]
[1745325782871,0.045,88768.0,88740.0,0.00057718]
[1745325783078,0.11375594,88767.0,88746.0,0.22536226]
[1745325783269,0.1346129,88767.0,88746.0,0.22536226]
[1745325783414,0.1346129,88767.0,88747.0,0.22535831]
[1745325783624,0.1346129,88767.0,88745.0,0.22681849]
[1745325783625,0.11375594,88761.0,88745.0,0.00145557]
[1745325783836,0.11375594,88752.0,88745.0,0.00145557]
[1745325784041,0.11375594,88752.0,88747.0,0.2253575]
[1745325784217,0.01685696,88751.0,88747.0,0.2253575]
[1745325784443,0.11375594,88750.0,88728.0,0.06576072]
[1745325784675,0.11375594,88750.0,88728.0,4.558e-05]
[1745325784945,0.045,88749.0,88745.0,0.003]
[1745325785112,0.11375594,88748.0,88745.0,0.003]
[1745325785327,0.11375594,88748.0,88732.0,0.22539651]
[1745325785756,0.11375594,88748.0,88728.0,0.23045272]
[1745325785975,0.11375594,88748.0,88730.0,0.22540235]
[1745325786180,0.11375594,88748.0,88729.0,0.22540433]
[1745325786380,0.11375594,88748.0,88747.0,0.0008454]
[1745325786589,0.25346306,88748.0,88747.0,0.0008454]
[1745325787799,0.01126925,88737.0,88716.0,0.0008]
[1745325787999,0.23666443,88734.0,88716.0,0.0008]
[1745325788212,0.11375594,88733.0,88716.0,0.0008]
[1745325788853,0.01127001,88731.0,88716.0,0.0008]
[1745325789064,0.33915977,88730.0,88716.0,0.0008]
[1745325789248,0.33215977,88730.0,88716.0,0.0008]
[1745325789460,0.10675594,88730.0,88716.0,0.0008]
[1745325789707,0.33215957,88730.0,88716.0,0.0008]
[1745325790567,0.33215957,88730.0,88728.0,0.00204558]
[1745325790969,0.33215957,88730.0,88728.0,4.558e-05]
[1745325791378,0.33415957,88730.0,88728.0,4.558e-05]
[1745325794517,0.01127154,88719.0,88716.0,0.0008]
[1745325794749,0.01127154,88719.0,88716.0,0.00084559]
[1745325794750,0.40093272,88717.0,88716.0,0.00084559]
[1745325795189,0.54063984,88717.0,88716.0,0.00084559]
[1745325795418,0.88063984,88717.0,88716.0,0.00084559]
[1745325796297,0.88895712,88717.0,88716.0,0.00084559]
[1745325796509,0.13675639,88699.0,88677.0,0.34]
[1745325796709,0.23676466,88696.0,88694.0,4.56e-05]
[1745325796901,0.11375594,88695.0,88694.0,4.56e-05]
[1745325797047,0.10675594,88695.0,88694.0,4.56e-05]
[1745325797244,0.10575594,88695.0,88694.0,4.56e-05]
[1745325797469,0.29266306,88695.0,88694.0,4.56e-05]
[1745325797909,0.29366306,88695.0,88694.0,4.56e-05]
[1745325798314,0.10675594,88695.0,88694.0,4.56e-05]
[1745325798515,0.001,88695.0,88694.0,0.3400456]
[1745325799536,0.001,88695.0,88694.0,4.56e-05]
[1745325799743,0.004,88695.0,88694.0,4.56e-05]
[1745325800181,0.001,88695.0,88694.0,4.56e-05]
[1745325800399,0.001,88695.0,88694.0,0.0030456]
[1745325801019,0.001,88695.0,88694.0,4.56e-05]
[1745325801226,0.001,88695.0,88694.0,0.0010456]
[1745325801721,0.002,88695.0,88694.0,0.0060456]
[1745325803002,0.001,88695.0,88694.0,0.0010456]
[1745325803772,0.001,88695.0,88694.0,0.0040456]
[1745325804383,0.001,88695.0,88694.0,0.0010456]
[1745325804612,0.001,88695.0,88694.0,0.0050456]
[1745325804820,0.13370712,88723.0,88694.0,0.0060456]
[1745325805004,0.09016675,88716.0,88694.0,0.0060456]
[1745325805212,0.11375594,88715.0,88694.0,0.0060456]
[1745325806271,0.11375594,88715.0,88694.0,0.0020456]
[1745325806655,0.11375594,88715.0,88694.0,0.0050456]
[1745325807087,0.11375594,88715.0,88694.0,0.0020456]
[1745325807289,0.11375594,88715.0,88694.0,0.0040456]
[1745325807866,0.13370712,88714.0,88694.0,0.0040456]
[1745325808077,0.11375594,88713.0,88694.0,0.0040456]
[1745325808427,0.13370712,88712.0,88694.0,0.0040456]
[1745325808630,0.11375594,88711.0,88694.0,0.0040456]
[1745325809012,0.0468,88710.0,88694.0,0.0040456]
[1745325809226,0.049,88706.0,88694.0,0.0020456]
[1745325809457,0.11375594,88705.0,88694.0,0.0020456]
[1745325809670,0.24746306,88705.0,88694.0,0.0040456]
[1745325810099,0.24746306,88705.0,88694.0,0.0020456]
[1745325810316,0.24746306,88705.0,88694.0,0.0030456]
[1745325810920,0.24746306,88705.0,88694.0,4.56e-05]